bitfinex-derivatives/quotes_ETHF0:USTF0_20250114
["timestamp","ask_amount","ask_price","bid_price","bid_amount"]
[1736865991397,3.2078,3210.0,3209.5,3.2078]
[1736865991594,3.2078,3210.0,3209.6,40.8]
[1736865991891,3.57746822,3209.9,3209.5,3.2078]
[1736865992089,0.31165,3209.8,3209.5,3.2078]
[1736865992592,3.57453176,3209.7,3209.5,3.2078]
[1736865993794,3.39380641,3209.8,3209.5,3.2078]
[1736865993991,1.526,3209.9,3209.5,3.2078]
[1736865994195,3.51943,3210.0,3209.5,3.2078]
[1736865994391,3.31194352,3209.8,3209.5,3.2078]
[1736865994590,3.31194352,3209.9,3209.5,3.2078]
[1736865994898,5.04543,3210.0,3209.5,3.2078]
[1736865995196,3.31194352,3209.9,3209.5,3.2078]
[1736865998100,0.3116,3210.3,3209.6,0.9736]
[1736865998302,3.24379129,3209.9,3209.6,0.9736]
[1736865998494,6.98614132,3210.4,3209.6,0.9736]
[1736865998797,3.24207128,3209.8,3209.6,0.9736]
[1736865999189,3.2078,3210.4,3209.6,0.9736]
[1736865999394,3.2078,3210.4,3209.9,3.2078]
[1736865999598,3.43811951,3210.1,3209.6,0.9736]
[1736865999900,6.46864847,3210.8,3210.0,3.2078]
[1736866000100,6.46864847,3210.8,3210.4,3.2078]
[1736866000300,3.2078,3210.8,3210.4,3.2078]
[1736866000598,3.2078,3210.8,3210.0,3.2078]
[1736866000599,3.43481379,3210.7,3210.0,3.2078]
[1736866000798,0.3116,3210.3,3210.0,3.2078]
[1736866001100,0.3116,3210.3,3209.6,4.1814]
[1736866001394,3.43481379,3210.2,3209.6,4.1814]
[1736866001595,0.31162,3210.1,3209.6,0.9736]
[1736866002099,3.36685058,3210.0,3209.5,3.2078]
[1736866002399,3.36685058,3210.0,3209.1,44.0078]
[1736866002703,0.31164,3209.9,3209.1,3.2078]
[1736866002901,6.57465058,3210.0,3209.1,3.2078]
[1736866003205,3.25034302,3209.8,3209.5,3.2078]
[1736866003701,3.2078,3210.6,3209.5,3.2078]
[1736866003890,3.2078,3210.6,3210.1,3.2078]
[1736866004093,3.2078,3210.6,3210.2,1.22861]
[1736866004499,3.2078,3211.4,3210.5,3.2078]
[1736866004903,3.2078,3211.0,3210.5,3.2078]
[1736866005404,3.55325601,3210.9,3210.5,3.2078]
[1736866005790,3.57635902,3211.2,3210.5,3.2078]
[1736866006094,3.57635902,3211.2,3210.2,0.917]
[1736866006302,3.28078049,3211.3,3210.2,0.917]
[1736866006602,3.51162567,3211.2,3210.2,0.917]
[1736866006804,3.51162567,3211.2,3210.5,3.2078]
[1736866007595,3.2078,3211.1,3210.2,0.917]
[1736866007903,3.59232049,3210.9,3210.2,0.917]
[1736866008091,3.2078,3210.7,3210.1,3.2078]
[1736866008292,3.2078,3210.3,3209.5,0.9283]
[1736866008500,3.28078049,3210.1,3209.5,0.9283]
[1736866008701,3.2078,3209.9,3209.4,3.2078]
[1736866008902,3.28078049,3209.7,3209.0,3.2078]
[1736866009097,3.51948,3209.5,3208.7,0.9283]
[1736866009403,3.29000304,3209.4,3208.7,0.9283]
[1736866012293,3.2078,3209.5,3209.1,3.2078]
[1736866012500,3.2078,3209.9,3209.1,3.2078]
[1736866012799,3.2078,3209.9,3209.2,0.31171]
[1736866013313,3.2078,3210.3,3209.6,3.2078]
[1736866013809,3.51840899,3210.1,3209.6,3.2078]
[1736866014000,3.51840899,3210.2,3209.6,3.2078]
[1736866014201,3.2078,3210.3,3209.6,3.2078]
[1736866014404,3.54325027,3210.2,3209.6,3.2078]
[1736866014598,3.54325027,3210.2,3209.7,0.4854]
[1736866014804,3.54325027,3210.2,3209.6,3.2078]
[1736866015508,0.31162,3210.1,3209.6,3.2078]
[1736866015804,3.39500464,3210.0,3209.6,3.2078]
[1736866016298,3.39500464,3210.1,3209.6,3.2078]
[1736866016600,3.2078,3209.9,3209.0,3.2078]
[1736866017005,3.51829286,3209.8,3209.0,3.2078]
[1736866017308,0.31166,3209.7,3209.0,3.2078]
[1736866017507,0.4744,3209.7,3209.0,3.2078]
[1736866017708,3.31543335,3209.6,3209.0,3.2078]
[1736866018404,3.31543335,3209.6,3208.6,40.8]
[1736866018810,3.31543335,3209.6,3208.6,44.0078]
[1736866019801,3.2078,3209.5,3208.6,44.0078]
[1736866020207,3.2078,3209.1,3208.6,44.0078]
[1736866020605,3.2078,3208.7,3208.2,0.9793]
[1736866020810,3.2078,3208.7,3208.2,0.4885]
[1736866021002,3.25930778,3208.6,3208.2,0.4885]
[1736866021308,3.2078,3208.3,3207.5,0.24763799]
[1736866021502,6.83602653,3208.3,3206.5,4.1383]
[1736866021703,0.31182,3208.1,3206.7,0.31195]
[1736866022005,0.31182,3208.1,3206.6,40.8]
[1736866022006,3.2078,3207.9,3206.6,40.8]
[1736866022308,0.31186,3207.7,3206.6,40.8]
[1736866022499,3.2078,3207.5,3206.7,3.2078]
[1736866022902,3.22586998,3207.4,3206.7,3.2078]
[1736866023105,3.22586998,3207.4,3206.6,40.8]
[1736866023311,3.22586998,3207.4,3206.2,3.2078]
[1736866023814,3.22586998,3207.4,3206.6,3.2078]
[1736866024510,3.22586998,3207.4,3205.8,0.2473629]
[1736866024511,0.312,3206.3,3205.2,3.2078]
[1736866024702,3.62822653,3206.1,3205.2,3.2078]
[1736866024903,8.70145632,3206.2,3205.2,44.0078]
[1736866025207,3.48645632,3206.0,3205.5,3.2078]
[1736866025401,3.47055146,3206.1,3205.6,0.4641]
[1736866025706,3.47055146,3206.4,3205.6,0.4641]
[1736866025908,0.4757,3206.6,3205.6,0.4641]
[1736866026213,3.62822653,3206.1,3205.5,3.2078]
[1736866026504,3.94024653,3206.1,3205.2,40.8]
[1736866026709,3.62822653,3205.3,3204.4,3.2078]
[1736866026905,5.15022653,3205.3,3204.4,3.2078]
[1736866027105,3.34614656,3205.2,3204.4,3.2078]
[1736866027410,3.2078,3205.1,3204.3,0.25611601]
[1736866027604,3.2078,3205.1,3203.9,3.6719]
[1736866027605,3.62822653,3204.5,3203.9,3.2078]
[1736866027812,1.523,3204.4,3203.9,3.2078]
[1736866028110,5.09000597,3204.4,3203.9,3.2078]
[1736866028511,5.09000597,3204.4,3203.7,3.2078]
[1736866028905,3.56700597,3204.4,3203.7,3.2078]
[1736866029112,3.2078,3205.1,3204.3,3.2078]
[1736866029509,3.46544441,3204.9,3204.6,3.2078]
[1736866029706,3.46544441,3205.0,3204.6,3.2078]
[1736866030016,3.2078,3205.1,3204.1,3.2078]
[1736866030206,7.09367094,3205.0,3204.1,3.2078]
[1736866030403,0.31216,3204.6,3204.1,3.2078]
[1736866030706,3.2078,3204.7,3204.1,3.2078]
[1736866030911,3.31957346,3204.5,3204.1,3.2078]
[1736866031105,3.2078,3204.7,3204.1,3.2078]
[1736866031106,3.31957346,3204.6,3204.1,3.2078]
[1736866031311,3.2078,3204.7,3204.1,3.2078]
[1736866031712,3.33856532,3204.6,3203.7,0.9498]
[1736866032213,3.33856532,3204.6,3204.3,3.2078]
[1736866032512,3.2078,3205.1,3204.3,3.2078]
[1736866032711,2.0181,3205.9,3204.7,3.2078]
[1736866033016,2.0181,3205.9,3204.3,3.2078]
[1736866033017,3.41493485,3205.0,3204.3,3.2078]
[1736866033216,3.2078,3204.4,3203.8,3.2078]
[1736866033407,3.2078,3204.4,3203.7,3.2078]
[1736866033408,3.62822653,3204.3,3203.7,3.2078]
[1736866033608,6.83602653,3203.9,3202.9,0.9337]
[1736866033815,7.14825653,3203.9,3202.9,0.9337]
[1736866034115,6.83602653,3203.5,3202.3,3.2078]
[1736866034317,1.523,3203.4,3202.7,3.2078]
[1736866034514,3.38178246,3203.4,3202.7,3.2078]
[1736866034703,3.38178246,3203.4,3202.8,40.8]
[1736866034908,3.38178246,3203.5,3202.8,40.8]
[1736866035216,3.2078,3203.6,3202.8,40.8]
[1736866035404,3.51769747,3203.5,3202.8,40.8]
[1736866035706,0.31227,3203.4,3202.8,40.8]
[1736866035911,7.14832653,3203.2,3202.3,3.2078]
[1736866036112,3.2078,3202.8,3202.3,3.2078]
[1736866036415,3.2078,3202.4,3201.8,44.0078]
[1736866036912,3.62822653,3203.1,3202.2,3.2078]
[1736866036913,0.09177721,3202.3,3202.2,3.2078]
[1736866037117,3.2078,3202.8,3202.2,3.2078]
[1736866037314,3.2078,3202.8,3201.9,0.4622]
[1736866037612,6.92184622,3202.7,3202.2,3.2078]
[1736866037820,0.31235,3202.6,3201.8,40.8]
[1736866038019,3.2078,3202.5,3201.8,40.8]
[1736866038214,3.2078,3202.5,3201.3,3.2078]
[1736866038215,3.62822653,3202.3,3201.3,3.2078]
[1736866038525,5.15222653,3202.3,3201.3,3.2078]
[1736866038722,3.54335105,3202.2,3201.3,3.2078]
[1736866039021,3.94065653,3201.9,3201.3,3.2078]
[1736866039222,3.62822653,3201.9,3200.7,3.6916]
[1736866039420,3.54335105,3201.8,3201.5,3.2078]
[1736866039815,3.28140595,3202.0,3201.5,3.2078]
[1736866040011,3.28140595,3202.1,3201.8,0.31242]
[1736866040211,3.2078,3202.5,3201.6,0.5003]
[1736866040616,3.29013415,3202.4,3201.6,0.5003]
[1736866041012,3.2078,3203.1,3201.8,3.2078]
[1736866041217,4.7318,3203.1,3202.4,40.8]
[1736866041425,3.29013415,3202.8,3202.4,40.8]
[1736866041622,1.524,3202.9,3202.4,40.8]
[1736866041824,4.91159047,3202.9,3202.4,40.8]
[1736866042021,3.2078,3202.7,3202.4,40.8]
[1736866042216,3.62822653,3202.5,3201.3,3.2078]
[1736866042411,6.83602653,3202.1,3201.0,0.4595]
[1736866042821,4.88284616,3202.0,3201.2,3.2078]
[1736866043411,3.35784616,3202.0,3201.6,3.52024]
[1736866043617,3.2078,3202.7,3201.6,3.52024]
[1736866043921,3.49194189,3202.5,3202.0,3.2078]
[1736866044123,3.49194189,3202.5,3202.4,3.2078]
[1736866044124,0.09194189,3202.5,3202.4,3.2078]
[1736866044311,3.2078,3203.6,3202.4,3.2078]
[1736866044512,3.2078,3204.3,3203.5,3.2078]
[1736866044714,3.62822653,3204.7,3203.9,3.2078]
[1736866044715,3.2078,3204.7,3203.9,3.2078]
[1736866044924,6.83602653,3205.1,3203.9,3.2078]
[1736866045120,6.83602653,3205.1,3203.8,3.52003]
[1736866045121,3.57665568,3204.6,3203.8,3.52003]
[1736866045314,3.57665568,3204.8,3203.8,3.2078]
[1736866045519,0.31212,3205.0,3203.8,3.2078]
[1736866045823,3.41010814,3204.8,3204.2,3.2078]
[1736866046519,3.41010814,3204.8,3203.7,0.9478]
[1736866046520,3.2078,3204.7,3203.7,4.1556]
[1736866046715,3.2078,3204.3,3203.7,3.2078]
[1736866046913,8.77290149,3204.6,3203.7,3.2078]
[1736866047120,3.61967496,3204.2,3203.7,3.2078]
[1736866047321,3.61967496,3204.4,3203.8,40.8]
[1736866047515,3.30281025,3204.5,3203.8,40.8]
[1736866047715,1.525,3204.6,3203.8,40.8]
[1736866048223,3.30281025,3204.5,3203.8,40.8]
[1736866048922,0.01364,3204.9,3204.1,3.2078]
[1736866049322,3.24855172,3204.6,3204.1,3.2078]
[1736866049518,3.24855172,3204.8,3204.2,0.31219]
[1736866049716,0.01364,3204.9,3204.2,0.31219]
[1736866050025,0.01364,3204.9,3204.1,3.2078]
[1736866050026,3.37579386,3204.8,3204.1,3.2078]
[1736866050219,3.2078,3204.7,3204.1,3.2078]
[1736866050424,3.62822653,3204.6,3203.7,3.2078]
[1736866050623,7.06277487,3204.6,3203.7,3.2078]
[1736866051229,0.31222,3204.0,3202.9,0.4696]
[1736866051422,1.537,3204.0,3202.9,0.4696]
[1736866051731,6.56032627,3203.9,3203.2,3.2078]
[1736866052424,3.2078,3203.5,3202.4,3.2078]
[1736866052832,3.30698305,3203.4,3202.4,3.2078]
[1736866053529,3.30698305,3203.4,3202.4,3.52016]
[1736866053733,3.30698305,3203.4,3202.4,3.2078]
[1736866054033,6.83602653,3203.1,3202.2,41.2696]
[1736866054427,1.9226181,3203.0,3202.0,3.2078]
[1736866054623,3.52012,3202.9,3201.5,0.78335]
[1736866055029,0.31234,3202.7,3201.6,40.8]
[1736866055231,3.2078,3202.5,3201.6,40.8]
[1736866055426,3.2078,3202.5,3201.4,0.4537]
[1736866055627,6.83602653,3202.1,3201.3,3.2078]
[1736866055927,1.537,3202.0,3201.4,40.8]
[1736866056127,4.81169389,3202.0,3201.4,40.8]
[1736866057727,4.8066207,3202.0,3201.4,40.8]
[1736866057933,4.8066207,3202.0,3200.8,0.78152]
[1736866058234,3.27469389,3202.0,3201.1,3.2078]
[1736866058533,3.27469389,3202.0,3201.2,40.8]
[1736866059130,3.27469389,3202.0,3201.3,0.31248]
[1736866059326,3.2078,3202.1,3201.3,0.31248]
[1736866059538,3.2078,3202.1,3201.2,40.8]
[1736866059836,3.60907205,3202.0,3201.2,40.8]
[1736866061430,3.60907205,3202.0,3201.2,41.11249]
[1736866061930,3.2078,3202.1,3201.5,3.2078]
[1736866062132,3.62822653,3202.7,3201.6,0.31245]
[1736866062339,0.9324,3203.0,3202.0,0.31241]
[1736866062538,3.32420379,3202.3,3202.0,0.31241]
[1736866062836,3.32420379,3202.7,3202.0,0.31241]
[1736866063025,3.32420379,3202.2,3201.6,3.6769]
[1736866063424,3.32420379,3202.6,3202.0,3.2078]
[1736866063629,3.2078,3202.6,3202.0,3.2078]
[1736866063831,3.3078246,3202.1,3202.0,3.2078]
[1736866064036,4.8448246,3202.5,3202.0,44.0078]
[1736866064236,1.537,3202.5,3202.0,44.0078]
[1736866064435,3.3078246,3202.1,3202.0,44.0078]
[1736866064628,3.39299121,3202.4,3202.0,44.0078]
[1736866064834,3.39299121,3202.1,3201.6,0.4691]
[1736866065129,6.60079121,3202.2,3201.1,3.2078]
[1736866065327,3.2078,3202.2,3201.2,40.8]
[1736866065531,3.39299121,3202.1,3201.2,40.8]
[1736866066135,3.39299121,3202.1,3201.5,3.2078]
[1736866066332,3.39299121,3202.1,3201.6,0.31245]
[1736866067237,1.538,3202.9,3201.9,0.31241]
[1736866067443,1.538,3202.9,3201.9,3.2078]
[1736866067642,3.33485963,3202.7,3201.9,3.2078]
[1736866067840,3.33485963,3202.8,3201.9,3.2078]
[1736866068043,1.538,3202.9,3201.9,3.52021]
[1736866068245,3.33485963,3202.8,3202.4,3.2078]
[1736866068542,3.6787,3203.0,3202.4,3.2078]
[1736866068543,3.2078,3203.0,3202.4,3.2078]
[1736866068737,3.54531515,3202.9,3202.4,3.2078]
[1736866068933,3.2078,3203.0,3202.4,3.2078]
[1736866069139,3.2078,3203.0,3202.2,3.62822653]
[1736866069140,3.2078,3203.5,3202.9,3.2078]
[1736866069641,3.47169644,3203.4,3202.9,3.2078]
[1736866070834,3.47169644,3203.4,3203.0,40.8]
[1736866071137,3.2078,3203.9,3203.0,40.8]
[1736866071343,3.26429787,3203.8,3203.0,40.8]
[1736866071532,3.26429787,3203.8,3203.0,41.2898]
[1736866071739,3.2078,3203.9,3203.0,41.2898]
[1736866072040,3.35991285,3203.8,3203.0,41.2898]
[1736866072642,3.35991285,3203.8,3203.0,40.8]
[1736866072844,3.35991285,3203.8,3202.9,3.2078]
[1736866076237,3.35991285,3203.8,3203.0,0.31231]
[1736866076539,3.35991285,3203.8,3203.3,3.52008]
[1736866076744,3.35991285,3203.8,3203.4,0.9693]
[1736866076938,3.57839459,3204.0,3203.4,0.9693]
[1736866077246,0.01473,3204.1,3203.4,0.9693]
[1736866077441,0.01473,3204.1,3203.5,0.31226]
[1736866077639,0.01473,3204.1,3203.7,3.52003]
[1736866077944,3.27676913,3204.0,3203.7,3.2078]
[1736866078747,6.48456913,3204.0,3203.3,3.2078]
[1736866078939,8.02156913,3204.0,3203.3,3.2078]
[1736866080438,3.2078,3203.5,3202.8,3.2078]
[1736866080638,3.2078,3203.1,3202.5,0.9562]
[1736866080847,3.2078,3203.1,3202.3,40.8]
[1736866081139,3.2078,3202.7,3202.0,3.2078]
[1736866081345,3.2078,3202.7,3201.9,0.4773]
[1736866081535,3.53458963,3202.6,3202.0,40.8]
[1736866081735,3.2078,3202.3,3201.6,3.2078]
[1736866082249,3.2078,3202.3,3201.7,40.8]
[1736866082250,3.35423114,3202.2,3201.7,40.8]
[1736866082447,3.2078,3201.9,3201.7,40.8]
[1736866082748,3.2078,3202.5,3201.7,41.11243]
[1736866082946,3.27568672,3202.3,3201.7,41.11243]
[1736866083147,6.48348672,3202.5,3201.7,41.11243]
[1736866083341,3.27568672,3202.4,3201.7,40.8]
[1736866083540,3.2078,3202.5,3201.7,40.8]
[1736866083851,3.26462298,3202.4,3201.7,40.8]
[1736866084152,3.2078,3202.1,3201.4,3.6666]
[1736866084344,3.2078,3201.7,3200.8,3.2078]
[1736866084653,3.63874707,3201.6,3201.0,40.8]
[1736866084840,1.563,3201.5,3201.0,40.8]
[1736866085241,3.32629707,3201.4,3201.0,40.8]
[1736866085643,3.32629707,3201.4,3200.8,3.2078]
[1736866086051,3.32629707,3201.4,3200.9,40.8]
[1736866086641,3.32629707,3201.4,3200.9,41.11251]
[1736866086841,3.32629707,3201.4,3200.9,41.269]
[1736866087042,3.35355917,3201.6,3200.9,41.269]
[1736866087242,3.2078,3201.7,3200.9,41.269]
[1736866087549,3.38658393,3201.6,3200.9,41.269]
[1736866087746,3.38658393,3201.6,3200.9,41.58151]
[1736866088059,3.2078,3202.1,3201.4,3.2078]
[1736866088448,3.38658393,3201.9,3201.4,3.2078]
[1736866088957,0.43614578,3202.0,3200.9,41.269]
[1736866089246,3.2078,3201.7,3200.9,41.269]
[1736866089445,3.2078,3201.7,3200.9,0.469]
[1736866089645,3.62154665,3201.6,3200.9,0.469]
[1736866090041,3.62154665,3201.6,3201.1,0.31249]
[1736866090238,3.2078,3201.7,3201.1,0.31249]
[1736866091143,3.2078,3202.2,3201.4,3.2078]
[1736866091342,3.2078,3202.2,3201.4,3.6928]
[1736866091544,3.44910423,3202.1,3201.4,3.6928]
[1736866092044,3.52023,3201.8,3200.9,0.469]
[1736866092244,3.52023,3201.8,3200.7,40.8]
[1736866092245,0.31248,3201.3,3200.7,40.8]
[1736866092453,6.84892371,3201.4,3200.3,3.6928]
[1736866092650,3.2570244,3201.2,3200.3,3.2078]
[1736866092845,3.2570244,3201.2,3200.2,0.01628013]
[1736866092846,3.2570244,3201.3,3200.4,40.8]
[1736866093051,3.2078,3201.0,3200.4,40.8]
[1736866093250,3.2078,3201.0,3200.2,0.01628013]
[1736866093453,3.5695444,3200.9,3200.2,0.01628013]
[1736866093650,3.2570244,3200.9,3200.2,0.01628013]
[1736866094355,3.5695544,3200.9,3200.2,0.01628013]
[1736866094557,3.2570244,3200.9,3200.2,0.01628013]
[1736866095060,3.2570244,3200.9,3200.3,0.31258]
[1736866095353,3.2078,3201.4,3200.4,3.52037]
[1736866095552,3.25318958,3200.9,3200.4,3.2078]
[1736866095951,3.25318958,3201.3,3200.2,0.48038013]
[1736866095952,0.31248,3201.3,3200.2,0.48038013]
[1736866096453,0.31252,3200.9,3200.2,0.01628013]
[1736866096650,0.4718,3200.8,3200.2,0.01628013]
[1736866096844,3.95570717,3200.8,3200.2,0.01628013]
[1736866097550,3.48390717,3200.8,3200.2,0.01628013]
[1736866098361,3.2078,3201.0,3200.4,3.2078]
[1736866098553,3.2078,3201.0,3200.8,0.31252]
[1736866098754,3.2078,3201.6,3201.0,0.31251]
[1736866098950,3.2078,3202.3,3201.1,0.4772]
[1736866099156,3.37165867,3201.8,3201.2,40.8]
[1736866099351,6.56459154,3202.3,3201.7,3.2078]
[1736866099548,3.2078,3202.3,3201.9,0.31241]
[1736866099755,3.52678539,3202.2,3201.8,0.4898]
[1736866099957,3.52678539,3202.2,3201.9,40.8]
[1736866100262,3.2078,3202.9,3201.9,40.8]
[1736866100760,3.51772641,3202.8,3201.9,40.8]
[1736866101262,3.2078,3202.0,3201.3,3.6748]
[1736866101554,3.2078,3202.0,3201.3,3.2078]
[1736866101755,3.30645954,3201.9,3201.4,40.8]
[1736866103464,3.2078,3201.8,3201.3,3.2078]
[1736866103755,3.2078,3201.8,3201.4,0.31247]
[1736866103955,3.58143729,3201.7,3201.6,0.31245]
[1736866104157,4.7718,3203.1,3201.8,0.31242]
[1736866104357,4.7718,3203.1,3202.1,3.2078]
[1736866104358,3.58143729,3202.6,3202.1,3.2078]
[1736866104563,3.58143729,3202.9,3202.1,3.2078]
[1736866104760,3.2078,3203.1,3202.1,3.2078]
[1736866105158,3.45173002,3202.8,3202.1,3.2078]
[1736866105359,3.45173002,3203.0,3202.1,3.2078]
[1736866105563,3.2078,3203.1,3202.1,3.2078]
[1736866105766,3.28046787,3202.7,3202.1,3.2078]
[1736866105961,3.28046787,3203.0,3202.1,3.2078]
[1736866106267,3.5202,3202.2,3201.3,3.2078]
[1736866106470,3.2078,3201.7,3201.3,3.2078]
[1736866106861,0.36124887,3201.6,3201.3,3.2078]
[1736866108064,0.36124887,3201.6,3200.8,44.0078]
[1736866109563,0.36124887,3201.6,3200.8,44.32032]
[1736866109762,0.36124887,3201.6,3200.8,44.0078]
[1736866109964,0.42960283,3202.2,3201.2,3.2078]
[1736866110163,3.2078,3202.6,3201.2,3.2078]
[1736866110164,3.2078,3202.6,3201.8,3.2078]
[1736866110467,3.3959979,3202.3,3201.6,0.31245]
[1736866110663,3.22868196,3202.5,3201.9,3.2078]
[1736866110871,3.2078,3203.0,3201.9,3.2078]
[1736866111168,4.10112371,3203.4,3202.3,3.2078]
[1736866111169,3.25255555,3202.9,3202.3,3.2078]
[1736866111565,3.68237232,3203.0,3202.0,0.31241]
[1736866111866,3.2078,3203.1,3202.1,0.3124]
[1736866112068,3.34102072,3202.9,3202.2,0.4802]
[1736866112369,3.34102072,3203.0,3202.2,0.4802]
[1736866112559,4.10112371,3203.4,3202.2,0.4802]
[1736866112759,3.3599211,3203.0,3202.4,3.2078]
[1736866112961,3.3599211,3203.3,3202.9,3.2078]
[1736866113160,3.2078,3203.9,3203.0,0.31231]
[1736866113369,3.2078,3203.9,3203.3,3.2078]
[1736866114364,3.2078,3203.9,3203.3,3.52008]
[1736866115360,0.01473,3204.1,3203.3,3.52008]
[1736866115574,0.01473,3204.1,3203.5,0.31225]
[1736866115873,0.01473,3204.1,3203.8,0.31223]
[1736866116074,0.01473,3204.1,3203.8,5.31223]
[1736866116570,0.01473,3204.1,3204.0,0.31221]
[1736866116962,0.01473,3204.1,3204.0,5.78841]
[1736866117165,0.01473,3204.1,3204.0,46.58841]
[1736866117668,0.01473,3204.1,3204.0,41.58841]
[1736866118072,3.2078,3204.9,3204.0,46.2762]
[1736866118387,3.2078,3205.5,3204.7,0.31214]
[1736866118766,3.2078,3205.5,3205.0,0.31211]
[1736866119272,3.2078,3205.5,3205.2,0.31209]
[1736866120368,3.2078,3205.5,3204.6,3.2078]
[1736866120570,3.32340046,3205.4,3204.6,3.2078]
[1736866120867,3.32340046,3205.4,3204.3,0.31218]
[1736866121072,3.32340046,3205.4,3204.5,0.31216]
[1736866121270,3.2078,3205.2,3204.2,4.1542]
[1736866121567,3.2078,3205.2,3204.3,0.31218]
[1736866121568,3.35813712,3205.1,3204.3,0.31218]
[1736866121772,3.35813712,3205.1,3204.5,0.31216]
[1736866122169,3.2078,3205.2,3204.5,0.31216]
[1736866122369,3.2078,3205.6,3204.7,0.31214]
[1736866122568,3.2078,3205.6,3204.9,0.31212]
[1736866122770,6.76655156,3205.6,3205.1,0.3121]
[1736866122968,3.2078,3205.6,3205.1,0.3121]
[1736866123165,3.2078,3205.6,3204.6,3.2078]
[1736866123166,3.2078,3205.6,3205.2,0.31209]
[1736866123376,3.2078,3205.6,3204.6,3.2078]
[1736866123578,3.55875156,3205.5,3204.6,3.2078]
[1736866123780,3.2078,3205.6,3204.7,0.31215]
[1736866123971,3.2078,3205.6,3204.9,0.31212]
[1736866124372,3.2078,3205.6,3205.1,0.3121]
[1736866124574,3.2078,3205.6,3204.6,3.2078]
[1736866124575,3.2078,3205.6,3205.0,3.2078]
[1736866125479,3.40937426,3205.5,3205.0,3.2078]
[1736866125671,3.72144426,3205.5,3204.6,3.2078]
[1736866125873,3.2078,3205.2,3204.1,3.2078]
[1736866126281,4.02978109,3205.1,3204.1,44.0078]
[1736866126971,4.02978109,3205.1,3204.3,0.31218]
[1736866127174,0.4634,3205.1,3204.5,3.2078]
[1736866127379,3.34004731,3205.0,3204.1,3.2078]
[1736866127579,3.2078,3204.7,3204.1,3.2078]
[1736866127776,3.2078,3204.7,3204.1,44.0078]
[1736866128085,3.33354848,3204.6,3204.1,44.0078]
[1736866129587,3.33354848,3204.6,3204.1,40.8]
[1736866131987,3.2078,3204.3,3204.1,40.8]
[1736866132483,3.52065342,3204.2,3204.1,40.8]
[1736866133085,3.52065342,3204.2,3203.0,0.3123]
[1736866133285,3.52065342,3204.2,3202.9,3.6748]
[1736866133286,3.2078,3203.7,3202.9,3.6748]
[1736866133477,3.2078,3203.7,3203.1,40.8]
[1736866133678,3.22084088,3203.6,3203.1,40.8]
[1736866135290,3.2078,3203.3,3203.1,40.8]
[1736866135585,3.2078,3203.3,3201.7,3.64112371]
[1736866135586,0.31232,3203.0,3201.9,3.2078]
[1736866135793,3.2078,3202.6,3201.9,3.2078]
[1736866135979,3.2078,3202.6,3202.0,40.8]
[1736866136182,0.07799383,3202.5,3202.0,40.8]
[1736866136591,3.2078,3202.1,3201.1,3.2078]
[1736866136784,3.2078,3201.7,3201.1,3.2078]
[1736866136992,0.31245,3201.6,3201.1,3.2078]
[1736866137194,3.59276935,3201.6,3201.1,3.2078]
[1736866137394,3.28031935,3201.6,3201.1,3.2078]
[1736866137783,3.2078,3201.3,3200.5,44.0078]
[1736866137989,3.2078,3201.3,3200.5,40.8]
[1736866138184,3.52207552,3201.2,3200.5,40.8]
[1736866138994,3.2078,3201.3,3200.5,44.0078]
[1736866139688,3.2078,3201.3,3200.6,0.31255]
[1736866139883,3.2078,3201.3,3200.5,44.0078]
[1736866140285,3.2078,3201.3,3200.9,0.31251]
[1736866140494,3.45857651,3201.2,3200.5,44.0078]
[1736866140793,3.2078,3201.3,3200.6,0.31255]
[1736866141203,3.2078,3201.9,3200.9,3.2078]
[1736866141491,0.4896,3202.0,3200.5,42.8504]
[1736866141492,3.2078,3203.1,3202.1,0.31239]
[1736866141691,0.4677,3203.3,3202.2,0.31239]
[1736866141893,0.4677,3203.3,3202.6,0.31235]
[1736866142086,0.4677,3203.3,3202.7,40.8]
[1736866142087,3.76290913,3203.3,3202.7,40.8]
[1736866142292,3.2078,3202.8,3202.7,40.8]
[1736866142796,6.50300913,3202.8,3202.7,40.8]
[1736866143298,3.2078,3202.8,3202.7,40.8]
[1736866144594,0.4964,3204.0,3202.7,45.8]
[1736866144595,3.2078,3203.9,3202.7,45.8]
[1736866144802,3.2078,3203.9,3202.9,0.31232]
[1736866145097,3.2078,3203.9,3202.8,0.4717]
[1736866145098,6.64561229,3203.9,3202.8,0.4717]
[1736866145494,6.64561229,3203.9,3202.8,0.78402]
[1736866145703,6.64561229,3203.9,3202.8,0.4717]
[1736866145894,3.2078,3203.1,3202.7,40.8]
[1736866146198,0.31233,3202.9,3202.0,3.2078]
[1736866146391,3.2078,3202.5,3201.7,0.4954]
[1736866146589,3.2078,3202.1,3201.5,40.8]
[1736866146795,3.2078,3202.1,3201.4,3.2078]
[1736866147094,3.2078,3202.1,3200.9,0.9418]
[1736866147095,0.39894963,3202.0,3201.0,3.2078]
[1736866147297,0.39894963,3202.0,3201.1,40.8]
[1736866147298,3.2078,3201.6,3201.1,40.8]
[1736866147692,3.26631202,3201.5,3201.1,40.8]
[1736866148406,3.2078,3201.2,3200.6,3.2078]
[1736866148805,3.55525222,3201.1,3200.7,40.8]
[1736866149802,3.30729845,3201.5,3200.7,40.8]
[1736866150102,3.2078,3201.6,3200.7,40.8]
[1736866150304,3.30729845,3201.5,3200.7,40.8]
[1736866150602,3.2078,3201.2,3200.7,40.8]
[1736866150902,3.2078,3200.8,3200.7,40.8]
[1736866151100,3.43096935,3201.1,3200.6,3.2078]
[1736866151304,6.63876935,3201.8,3200.6,3.2078]
[1736866151496,3.2078,3201.8,3201.3,40.8]
[1736866151698,3.25149391,3201.7,3201.3,40.8]